[Event "*** SCC Grand Prix: Titled Tuesday Blitz"]
[Site "Chess.com"]
[Date "2020.07.14"]
[Round "2"]
[White "Paladin61"]
[Black "ChelsieMonica"]
[Result "1-0"]
[WhiteElo "2657"]
[BlackElo "2416"]
[TimeControl "180+1"]
[EndTime "10:18:06 PDT"]
[Termination "Paladin61 won by resignation"]

1. b3 {[%clk 0:02:59.3]} 1... d5 {[%clk 0:02:38.1]} 2. Bb2 {[%clk 0:02:58.4]}
2... Nf6 {[%clk 0:02:38.2]} 3. Nf3 {[%clk 0:02:58.1]} 3... e6 {[%clk 0:02:38.6]}
4. g3 {[%clk 0:02:57.4]} 4... Be7 {[%clk 0:02:39]} 5. Bg2 {[%clk 0:02:56.5]}
5... O-O {[%clk 0:02:39.1]} 6. O-O {[%clk 0:02:53.8]} 6... c5 {[%clk 0:02:39.4]}
7. e3 {[%clk 0:02:53.7]} 7... Nc6 {[%clk 0:02:39.5]} 8. d4 {[%clk 0:02:53.6]}
8... b6 {[%clk 0:02:38.8]} 9. dxc5 {[%clk 0:02:53.6]} 9... bxc5 {[%clk
0:02:38.8]} 10. c4 {[%clk 0:02:53.8]} 10... Ba6 {[%clk 0:02:38.1]} 11. Nbd2
{[%clk 0:02:30.2]} 11... Rb8 {[%clk 0:02:24.7]} 12. Rc1 {[%clk 0:02:22.1]} 12...
Nb4 {[%clk 0:02:22.8]} 13. Ne5 {[%clk 0:02:16.4]} 13... Nd7 {[%clk 0:01:58.9]}
14. Nxd7 {[%clk 0:01:59.9]} 14... Qxd7 {[%clk 0:01:58.5]} 15. Qg4 {[%clk
0:01:59.8]} 15... d4 {[%clk 0:01:34.3]} 16. Rcd1 {[%clk 0:01:12.4]} 16... f5
{[%clk 0:01:29.8]} 17. Qh5 {[%clk 0:01:10.6]} 17... Bf6 {[%clk 0:01:05.2]} 18.
Nf3 {[%clk 0:00:54.2]} 18... Nc6 {[%clk 0:00:36.3]} 19. Ba3 {[%clk 0:00:44.5]}
19... g6 {[%clk 0:00:27.3]} 20. Qh6 {[%clk 0:00:40.6]} 20... Bg7 {[%clk
0:00:27.3]} 21. Qh3 {[%clk 0:00:40.3]} 21... Nb4 {[%clk 0:00:19.9]} 22. exd4
{[%clk 0:00:33]} 22... cxd4 {[%clk 0:00:20.8]} 23. Rfe1 {[%clk 0:00:33]} 23...
Rfe8 {[%clk 0:00:20.5]} 24. Bxb4 {[%clk 0:00:25.3]} 24... Rxb4 {[%clk
0:00:20.1]} 25. Ng5 {[%clk 0:00:26.2]} 25... h6 {[%clk 0:00:20.2]} 26. Nxe6
{[%clk 0:00:26.3]} 26... Rxe6 {[%clk 0:00:17.6]} 27. Rxe6 {[%clk 0:00:25.1]}
27... Bb7 {[%clk 0:00:14.2]} 28. Rxg6 {[%clk 0:00:13.2]} 28... Kh7 {[%clk
0:00:14.2]} 29. Bxb7 {[%clk 0:00:11.7]} 29... Rxb7 {[%clk 0:00:15.1]} 30. Qh5
{[%clk 0:00:11.2]} 30... Qf7 {[%clk 0:00:15.2]} 31. Rxg7+ {[%clk 0:00:10]} 31...
Qxg7 {[%clk 0:00:15.3]} 32. Qxf5+ {[%clk 0:00:10]} 32... Kh8 {[%clk 0:00:14.8]}
33. Re1 {[%clk 0:00:10.1]} 33... Rf7 {[%clk 0:00:14.9]} 34. Re8+ {[%clk
0:00:09.7]} 34... Rf8 {[%clk 0:00:11.2]} 35. Rxf8+ {[%clk 0:00:09.5]} 1-0

[Event "*** SCC Grand Prix: Titled Tuesday Blitz"]
[Site "Chess.com"]
[Date "2020.07.14"]
[Round "2"]
[White "Anton_Demchenko"]
[Black "Sueetin"]
[Result "1-0"]
[WhiteElo "2827"]
[BlackElo "2332"]
[TimeControl "180+1"]
[EndTime "10:18:06 PDT"]
[Termination "Anton_Demchenko won on time"]

1. e4 {[%clk 0:03:00.9]} 1... e5 {[%clk 0:02:57.6]} 2. Nf3 {[%clk 0:02:54]} 2...
Nc6 {[%clk 0:02:57.6]} 3. Nc3 {[%clk 0:02:53.4]} 3... Nf6 {[%clk 0:02:56.7]} 4.
Bb5 {[%clk 0:02:54.1]} 4... Bd6 {[%clk 0:02:47.6]} 5. d3 {[%clk 0:02:52.6]} 5...
h6 {[%clk 0:02:34.2]} 6. a3 {[%clk 0:02:49.2]} 6... Ne7 {[%clk 0:02:28.7]} 7.
Bc4 {[%clk 0:02:37]} 7... Ng6 {[%clk 0:02:26.9]} 8. h4 {[%clk 0:02:33.7]} 8...
h5 {[%clk 0:02:10.3]} 9. Ng5 {[%clk 0:02:30.6]} 9... Rf8 {[%clk 0:01:49.4]} 10.
Nd5 {[%clk 0:02:22]} 10... c6 {[%clk 0:01:47]} 11. Ne3 {[%clk 0:02:15.6]} 11...
Ne7 {[%clk 0:01:28.7]} 12. d4 {[%clk 0:02:07.5]} 12... Bc7 {[%clk 0:01:15.2]}
13. d5 {[%clk 0:01:56.2]} 13... d6 {[%clk 0:01:06.7]} 14. O-O {[%clk 0:01:33.4]}
14... c5 {[%clk 0:00:52.7]} 15. g3 {[%clk 0:01:23.3]} 15... Bg4 {[%clk
0:00:26.2]} 16. f3 {[%clk 0:01:22.8]} 16... Bd7 {[%clk 0:00:25.3]} 17. a4 {[%clk
0:01:20.3]} 17... a6 {[%clk 0:00:21.1]} 18. Qe2 {[%clk 0:01:19.6]} 18... Rb8
{[%clk 0:00:20.4]} 19. c3 {[%clk 0:01:06.3]} 19... b5 {[%clk 0:00:20]} 20. axb5
{[%clk 0:01:07.2]} 20... axb5 {[%clk 0:00:20.9]} 21. Bd3 {[%clk 0:01:08]} 21...
c4 {[%clk 0:00:21.4]} 22. Bc2 {[%clk 0:01:08.5]} 22... Bb6 {[%clk 0:00:22]} 23.
Kg2 {[%clk 0:01:08.3]} 23... Ng6 {[%clk 0:00:22]} 24. b3 {[%clk 0:01:00.9]}
24... cxb3 {[%clk 0:00:16.8]} 25. Bd3 {[%clk 0:01:01.1]} 25... Bc5 {[%clk
0:00:15.4]} 26. Rb1 {[%clk 0:01:00.9]} 26... Qa5 {[%clk 0:00:08.9]} 27. Rxb3
{[%clk 0:00:57.7]} 27... Ke7 {[%clk 0:00:08.2]} 28. Bd2 {[%clk 0:00:57.3]} 28...
Qc7 {[%clk 0:00:07.3]} 29. Rfb1 {[%clk 0:00:56.3]} 29... Rb7 {[%clk 0:00:06.4]}
30. Nf5+ {[%clk 0:00:52.5]} 30... Bxf5 {[%clk 0:00:04.4]} 31. exf5 {[%clk
0:00:53.4]} 31... Nh8 {[%clk 0:00:03.2]} 32. Be4 {[%clk 0:00:50.3]} 32... Rfb8
{[%clk 0:00:03]} 33. Rxb5 {[%clk 0:00:44.6]} 33... Rxb5 {[%clk 0:00:02.9]} 34.
Rxb5 {[%clk 0:00:45.5]} 34... Rxb5 {[%clk 0:00:02]} 35. Qxb5 {[%clk 0:00:46.4]}
35... Nd7 {[%clk 0:00:02.3]} 36. g4 {[%clk 0:00:32.6]} 36... Ba7 {[%clk
0:00:02.2]} 37. Be1 {[%clk 0:00:14.9]} 37... Nf8 {[%clk 0:00:01.5]} 38. c4
{[%clk 0:00:11.1]} 1-0

[Event "*** SCC Grand Prix: Titled Tuesday Blitz"]
[Site "Chess.com"]
[Date "2020.07.14"]
[Round "2"]
[White "XiaoKangZhong"]
[Black "winniethepooh04"]
[Result "1-0"]
[WhiteElo "2424"]
[BlackElo "2184"]
[TimeControl "180+1"]
[EndTime "10:18:07 PDT"]
[Termination "XiaoKangZhong won on time"]

1. e4 {[%clk 0:03:00.9]} 1... c5 {[%clk 0:02:58]} 2. c3 {[%clk 0:03:00.8]} 2...
d6 {[%clk 0:02:56.9]} 3. d4 {[%clk 0:03:00.8]} 3... Nf6 {[%clk 0:02:57.4]} 4.
Bd3 {[%clk 0:03:00.4]} 4... g6 {[%clk 0:02:56.9]} 5. Nf3 {[%clk 0:02:59.4]} 5...
Bg7 {[%clk 0:02:57.2]} 6. O-O {[%clk 0:02:59.4]} 6... O-O {[%clk 0:02:57.7]} 7.
Re1 {[%clk 0:02:54]} 7... Bg4 {[%clk 0:02:57.3]} 8. h3 {[%clk 0:02:53.9]} 8...
Bxf3 {[%clk 0:02:55.1]} 9. Qxf3 {[%clk 0:02:54.8]} 9... cxd4 {[%clk 0:02:50.2]}
10. cxd4 {[%clk 0:02:54.6]} 10... Nc6 {[%clk 0:02:50.6]} 11. Be3 {[%clk
0:02:53.6]} 11... a6 {[%clk 0:02:47.8]} 12. Nc3 {[%clk 0:02:51.9]} 12... Rc8
{[%clk 0:02:41.4]} 13. Rac1 {[%clk 0:02:47.2]} 13... Re8 {[%clk 0:02:37.5]} 14.
a3 {[%clk 0:02:31.8]} 14... e5 {[%clk 0:02:34.3]} 15. d5 {[%clk 0:02:30]} 15...
Nd4 {[%clk 0:02:24.8]} 16. Qd1 {[%clk 0:02:28.4]} 16... Nd7 {[%clk 0:02:12.5]}
17. b4 {[%clk 0:02:15.8]} 17... Nb6 {[%clk 0:01:44.9]} 18. Nb1 {[%clk
0:02:08.3]} 18... Rxc1 {[%clk 0:01:37.3]} 19. Qxc1 {[%clk 0:02:09.2]} 19... Qc8
{[%clk 0:01:37.4]} 20. Bxd4 {[%clk 0:02:07.8]} 20... exd4 {[%clk 0:01:35.3]} 21.
Nd2 {[%clk 0:02:08]} 21... Na4 {[%clk 0:01:27.9]} 22. Nc4 {[%clk 0:02:03.1]}
22... Qd7 {[%clk 0:01:17.2]} 23. Qf4 {[%clk 0:01:38.3]} 23... Rd8 {[%clk
0:01:03.6]} 24. Rc1 {[%clk 0:01:27]} 24... b5 {[%clk 0:01:02]} 25. Na5 {[%clk
0:01:25.1]} 25... Nc3 {[%clk 0:01:01]} 26. Nc6 {[%clk 0:01:23.3]} 26... Re8
{[%clk 0:00:49.4]} 27. f3 {[%clk 0:01:18.2]} 27... h5 {[%clk 0:00:48]} 28. Kh1
{[%clk 0:01:11]} 28... Kh7 {[%clk 0:00:48.3]} 29. Bf1 {[%clk 0:01:07.4]} 29...
Bh6 {[%clk 0:00:46.9]} 30. Qf6 {[%clk 0:00:36.9]} 30... Bxc1 {[%clk 0:00:46.1]}
31. Qxd4 {[%clk 0:00:37.5]} 31... Bb2 {[%clk 0:00:40.4]} 32. Na5 {[%clk
0:00:32.5]} 32... Na4 {[%clk 0:00:37.2]} 33. Qb6 {[%clk 0:00:29.8]} 33... Rc8
{[%clk 0:00:31.8]} 34. Nc6 {[%clk 0:00:25]} 34... Nc3 {[%clk 0:00:27.4]} 35.
Qxa6 {[%clk 0:00:22.1]} 35... Nd1 {[%clk 0:00:27]} 36. Bxb5 {[%clk 0:00:18]}
36... Rxc6 {[%clk 0:00:08.9]} 37. Bxc6 {[%clk 0:00:14.3]} 37... Qe7 {[%clk
0:00:09.1]} 38. Qe2 {[%clk 0:00:14.1]} 38... Nc3 {[%clk 0:00:08]} 39. Qxb2
{[%clk 0:00:13.8]} 39... Nd1 {[%clk 0:00:05]} 40. Qd2 {[%clk 0:00:13.7]} 1-0

[Event "*** SCC Grand Prix: Titled Tuesday Blitz"]
[Site "Chess.com"]
[Date "2020.07.14"]
[Round "2"]
[White "Larina_Marija"]
[Black "Alohamora11"]
[Result "0-1"]
[WhiteElo "2112"]
[BlackElo "2400"]
[TimeControl "180+1"]
[EndTime "10:18:07 PDT"]
[Termination "Alohamora11 won on time"]

1. e4 {[%clk 0:02:51.9]} 1... c5 {[%clk 0:03:00.3]} 2. Nc3 {[%clk 0:02:49.9]}
2... Nc6 {[%clk 0:02:59]} 3. g3 {[%clk 0:02:46.4]} 3... g6 {[%clk 0:02:59]} 4.
Bg2 {[%clk 0:02:45.8]} 4... Bg7 {[%clk 0:02:59.6]} 5. d3 {[%clk 0:02:43.1]} 5...
e6 {[%clk 0:03:00.1]} 6. Be3 {[%clk 0:02:42.8]} 6... d6 {[%clk 0:02:56.8]} 7.
Qd2 {[%clk 0:02:40.5]} 7... Nd4 {[%clk 0:02:44]} 8. Nd1 {[%clk 0:02:37.5]} 8...
Rb8 {[%clk 0:02:24.4]} 9. c3 {[%clk 0:02:36.9]} 9... Nc6 {[%clk 0:02:24.5]} 10.
d4 {[%clk 0:02:25.5]} 10... cxd4 {[%clk 0:02:22.2]} 11. cxd4 {[%clk 0:02:25.3]}
11... Nge7 {[%clk 0:02:14.7]} 12. Ne2 {[%clk 0:02:23.6]} 12... d5 {[%clk
0:02:12.4]} 13. e5 {[%clk 0:01:52.4]} 13... Nf5 {[%clk 0:02:10.3]} 14. Bg5
{[%clk 0:01:51.3]} 14... f6 {[%clk 0:02:06.8]} 15. exf6 {[%clk 0:01:50.2]} 15...
Bxf6 {[%clk 0:02:07.7]} 16. Bxf6 {[%clk 0:01:49.4]} 16... Qxf6 {[%clk
0:02:07.2]} 17. O-O {[%clk 0:01:21.3]} 17... Nfxd4 {[%clk 0:02:05.8]} 18. Nxd4
{[%clk 0:01:09.6]} 18... Nxd4 {[%clk 0:02:06.7]} 19. f4 {[%clk 0:01:01.5]} 19...
O-O {[%clk 0:02:03.9]} 20. Rc1 {[%clk 0:00:56.7]} 20... Bd7 {[%clk 0:02:00.5]}
21. Rc7 {[%clk 0:00:51.8]} 21... Bc6 {[%clk 0:01:50.7]} 22. Ne3 {[%clk
0:00:46.5]} 22... Nb5 {[%clk 0:01:37.3]} 23. Ng4 {[%clk 0:00:37.2]} 23... Qf7
{[%clk 0:01:01.8]} 24. Rxf7 {[%clk 0:00:35.6]} 24... Kxf7 {[%clk 0:01:02.6]} 25.
Ne5+ {[%clk 0:00:35.1]} 25... Kg7 {[%clk 0:01:02.7]} 26. a4 {[%clk 0:00:31.1]}
26... Nd6 {[%clk 0:01:02.8]} 27. Qd4 {[%clk 0:00:29.8]} 27... Nf5 {[%clk
0:01:01.8]} 28. Qc5 {[%clk 0:00:16.3]} 28... Rbc8 {[%clk 0:00:57.4]} 29. g4
{[%clk 0:00:11.6]} 29... b6 {[%clk 0:00:51.3]} 30. Qa3 {[%clk 0:00:10.7]} 30...
Nd4 {[%clk 0:00:46.2]} 31. Qe7+ {[%clk 0:00:10.7]} 31... Kg8 {[%clk 0:00:46.4]}
32. Rd1 {[%clk 0:00:08]} 32... Rce8 {[%clk 0:00:46.4]} 33. Qg5 {[%clk
0:00:07.8]} 33... Ne2+ {[%clk 0:00:43.5]} 34. Kf2 {[%clk 0:00:07.1]} 34... Nxf4
{[%clk 0:00:42.3]} 35. Kg1 {[%clk 0:00:05.2]} 35... Bxa4 {[%clk 0:00:41.8]} 36.
Rf1 {[%clk 0:00:04.8]} 36... Ne2+ {[%clk 0:00:39.3]} 37. Kh1 {[%clk 0:00:05.1]}
37... Bc2 {[%clk 0:00:36.7]} 38. Bf3 {[%clk 0:00:03.5]} 38... Nd4 {[%clk
0:00:36.1]} 39. Bd1 {[%clk 0:00:02.9]} 39... Rxf1+ {[%clk 0:00:35]} 40. Kg2
{[%clk 0:00:03.8]} 40... Rxd1 {[%clk 0:00:33.6]} 41. Nd7 {[%clk 0:00:03.7]}
41... Be4+ {[%clk 0:00:31.9]} 42. Kh3 {[%clk 0:00:02.3]} 42... Rd3+ {[%clk
0:00:31.5]} 43. Kh4 {[%clk 0:00:02.6]} 43... Nf3+ {[%clk 0:00:31.8]} 44. Kg3
{[%clk 0:00:02]} 44... Nxg5+ {[%clk 0:00:32.2]} 0-1

[Event "*** SCC Grand Prix: Titled Tuesday Blitz"]
[Site "Chess.com"]
[Date "2020.07.14"]
[Round "2"]
[White "AccioChess"]
[Black "VladimirBelous"]
[Result "0-1"]
[WhiteElo "2476"]
[BlackElo "2727"]
[TimeControl "180+1"]
[EndTime "10:18:08 PDT"]
[Termination "VladimirBelous won by resignation"]

1. e4 {[%clk 0:03:00.5]} 1... c5 {[%clk 0:03:00.1]} 2. Nf3 {[%clk 0:02:59.8]}
2... Nc6 {[%clk 0:03:00.2]} 3. Nc3 {[%clk 0:02:58.4]} 3... d6 {[%clk 0:02:55.7]}
4. d4 {[%clk 0:02:50.7]} 4... cxd4 {[%clk 0:02:55.1]} 5. Nxd4 {[%clk 0:02:51.6]}
5... Nf6 {[%clk 0:02:55.3]} 6. Be2 {[%clk 0:02:47.5]} 6... e5 {[%clk 0:02:45.6]}
7. Nb3 {[%clk 0:02:46.1]} 7... Be6 {[%clk 0:02:44.5]} 8. O-O {[%clk 0:02:45.9]}
8... d5 {[%clk 0:02:40.5]} 9. exd5 {[%clk 0:02:35.1]} 9... Nxd5 {[%clk 0:02:39]}
10. Nxd5 {[%clk 0:02:35.1]} 10... Bxd5 {[%clk 0:02:34.4]} 11. Be3 {[%clk
0:02:35.1]} 11... Be7 {[%clk 0:02:33.9]} 12. c4 {[%clk 0:02:33.2]} 12... Be6
{[%clk 0:02:31.7]} 13. Nc5 {[%clk 0:02:32.8]} 13... Bxc5 {[%clk 0:02:19.6]} 14.
Bxc5 {[%clk 0:02:32.3]} 14... Qxd1 {[%clk 0:02:16.7]} 15. Rfxd1 {[%clk
0:02:30.7]} 15... f6 {[%clk 0:02:16.9]} 16. b4 {[%clk 0:02:10.7]} 16... Kf7
{[%clk 0:02:12.6]} 17. b5 {[%clk 0:02:08.9]} 17... Na5 {[%clk 0:02:04.6]} 18.
Be3 {[%clk 0:01:55.9]} 18... Bxc4 {[%clk 0:01:40.6]} 19. Bxc4+ {[%clk
0:01:46.5]} 19... Nxc4 {[%clk 0:01:41.5]} 20. Rd7+ {[%clk 0:01:46.2]} 20... Kg6
{[%clk 0:01:39.8]} 21. Rxb7 {[%clk 0:01:45.6]} 21... Rhb8 {[%clk 0:01:20.7]} 22.
Rxb8 {[%clk 0:01:16.6]} 22... Rxb8 {[%clk 0:01:21.6]} 23. a4 {[%clk 0:01:16.6]}
23... Nxe3 {[%clk 0:01:18.3]} 24. fxe3 {[%clk 0:01:17.5]} 24... Rc8 {[%clk
0:01:17.2]} 25. a5 {[%clk 0:01:15.7]} 25... Rb8 {[%clk 0:01:15.3]} 26. Rb1
{[%clk 0:01:14.1]} 26... Kf5 {[%clk 0:01:15.8]} 27. b6 {[%clk 0:01:05.2]} 27...
axb6 {[%clk 0:01:13.8]} 28. Rxb6 {[%clk 0:01:06.1]} 28... Rc8 {[%clk 0:01:10.2]}
29. Rb7 {[%clk 0:00:58.1]} 29... g5 {[%clk 0:01:00.4]} 30. a6 {[%clk 0:00:51.5]}
30... h5 {[%clk 0:00:57.9]} 31. a7 {[%clk 0:00:49.7]} 31... Rc1+ {[%clk
0:00:58.3]} 32. Kf2 {[%clk 0:00:49.7]} 32... Ra1 {[%clk 0:00:58.2]} 33. Ke2
{[%clk 0:00:43.7]} 33... Ke4 {[%clk 0:00:53.6]} 34. Rb4+ {[%clk 0:00:41.1]}
34... Kd5 {[%clk 0:00:47.3]} 35. Rb7 {[%clk 0:00:39.5]} 35... Ra3 {[%clk
0:00:45.9]} 36. Rf7 {[%clk 0:00:31.4]} 36... Ke4 {[%clk 0:00:42.5]} 37. Rxf6
{[%clk 0:00:29.4]} 37... Rxa7 {[%clk 0:00:33.4]} 38. Rf3 {[%clk 0:00:20.5]}
38... g4 {[%clk 0:00:28.7]} 39. Rg3 {[%clk 0:00:19.9]} 39... Ra2+ {[%clk
0:00:24.4]} 40. Kf1 {[%clk 0:00:19.4]} 40... Ra1+ {[%clk 0:00:20.4]} 41. Kf2
{[%clk 0:00:19.1]} 41... Ra4 {[%clk 0:00:19.8]} 42. h3 {[%clk 0:00:18.8]} 42...
Kf5 {[%clk 0:00:20.4]} 43. hxg4+ {[%clk 0:00:18.8]} 43... hxg4 {[%clk
0:00:21.3]} 44. Kf1 {[%clk 0:00:18.8]} 44... e4 {[%clk 0:00:21.5]} 45. Kf2
{[%clk 0:00:19]} 45... Kg5 {[%clk 0:00:22.1]} 46. Kg1 {[%clk 0:00:18.6]} 46...
Kh4 {[%clk 0:00:22.5]} 47. Kh2 {[%clk 0:00:18.8]} 47... Ra2 {[%clk 0:00:22.4]}
0-1

[Event "*** SCC Grand Prix: Titled Tuesday Blitz"]
[Site "Chess.com"]
[Date "2020.07.14"]
[Round "2"]
[White "Forantes"]
[Black "Shubinkirill2003"]
[Result "0-1"]
[WhiteElo "2358"]
[BlackElo "2634"]
[TimeControl "180+1"]
[EndTime "10:18:09 PDT"]
[Termination "Shubinkirill2003 won by resignation"]

1. Nf3 {[%clk 0:03:00.9]} 1... Nf6 {[%clk 0:02:59.7]} 2. g3 {[%clk 0:03:00.8]}
2... b5 {[%clk 0:02:59.8]} 3. Bg2 {[%clk 0:03:00]} 3... Bb7 {[%clk 0:02:59.9]}
4. d4 {[%clk 0:03:00.4]} 4... e6 {[%clk 0:02:59.8]} 5. O-O {[%clk 0:03:00.9]}
5... c5 {[%clk 0:03:00]} 6. c4 {[%clk 0:03:00]} 6... bxc4 {[%clk 0:02:57.7]} 7.
Nc3 {[%clk 0:02:59.3]} 7... d5 {[%clk 0:02:54.1]} 8. Ne5 {[%clk 0:02:46]} 8...
cxd4 {[%clk 0:02:51.7]} 9. Qxd4 {[%clk 0:02:46.9]} 9... Nc6 {[%clk 0:02:48.5]}
10. Nxc6 {[%clk 0:02:46.4]} 10... Bxc6 {[%clk 0:02:49.4]} 11. e4 {[%clk
0:02:29.2]} 11... Be7 {[%clk 0:02:46.7]} 12. exd5 {[%clk 0:02:23.1]} 12... exd5
{[%clk 0:02:47.6]} 13. Rd1 {[%clk 0:02:02.9]} 13... O-O {[%clk 0:02:30.4]} 14.
Bf4 {[%clk 0:01:51.9]} 14... Qb6 {[%clk 0:02:12.5]} 15. Qxb6 {[%clk 0:00:22.5]}
15... axb6 {[%clk 0:02:13.4]} 16. Nxd5 {[%clk 0:00:23.1]} 16... Nxd5 {[%clk
0:02:10.9]} 17. Bxd5 {[%clk 0:00:24]} 17... Bxd5 {[%clk 0:02:07.6]} 18. Rxd5
{[%clk 0:00:24.9]} 18... Bc5 {[%clk 0:01:25.2]} 19. Bc7 {[%clk 0:00:18.1]} 19...
Rfe8 {[%clk 0:01:11]} 20. Rd2 {[%clk 0:00:11.7]} 20... h5 {[%clk 0:00:55.3]} 21.
a3 {[%clk 0:00:12.1]} 21... Re6 {[%clk 0:00:45.1]} 22. Rad1 {[%clk 0:00:12.5]}
22... Kh7 {[%clk 0:00:37.3]} 23. Rc2 {[%clk 0:00:12.7]} 23... Rc8 {[%clk
0:00:28.6]} 24. Bf4 {[%clk 0:00:12.3]} 24... b5 {[%clk 0:00:27.5]} 25. Rd5
{[%clk 0:00:11.5]} 25... g6 {[%clk 0:00:24.2]} 26. Kg2 {[%clk 0:00:12]} 26...
Re7 {[%clk 0:00:19]} 27. b3 {[%clk 0:00:12.1]} 27... Bxa3 {[%clk 0:00:14.2]} 28.
bxc4 {[%clk 0:00:12.1]} 28... bxc4 {[%clk 0:00:13.4]} 29. Rd4 {[%clk 0:00:11.9]}
29... c3 {[%clk 0:00:12.5]} 30. Rd3 {[%clk 0:00:11.2]} 30... Bb2 {[%clk
0:00:11.6]} 31. Bd6 {[%clk 0:00:11.7]} 31... Rd7 {[%clk 0:00:11.5]} 32. Rd4
{[%clk 0:00:09.1]} 32... Rcd8 {[%clk 0:00:11.6]} 33. Rf4 {[%clk 0:00:06.7]}
33... Rxd6 {[%clk 0:00:11.5]} 34. Rxf7+ {[%clk 0:00:07.6]} 34... Kh6 {[%clk
0:00:11.9]} 35. Re2 {[%clk 0:00:07.2]} 35... R6d7 {[%clk 0:00:08.9]} 36. Rf3
{[%clk 0:00:05.8]} 36... Rc8 {[%clk 0:00:08.7]} 37. Re6 {[%clk 0:00:06.3]} 37...
c2 {[%clk 0:00:08.3]} 0-1

[Event "*** SCC Grand Prix: Titled Tuesday Blitz"]
[Site "Chess.com"]
[Date "2020.07.14"]
[Round "2"]
[White "Ariadna_Atreides"]
[Black "Tactictic"]
[Result "0-1"]
[WhiteElo "2079"]
[BlackElo "2380"]
[TimeControl "180+1"]
[EndTime "10:18:10 PDT"]
[Termination "Tactictic won by resignation"]

1. d4 {[%clk 0:03:00.9]} 1... Nf6 {[%clk 0:02:52.9]} 2. Nf3 {[%clk 0:03:01.2]}
2... d5 {[%clk 0:02:52.6]} 3. e3 {[%clk 0:03:00.9]} 3... c5 {[%clk 0:02:51.6]}
4. Bd3 {[%clk 0:02:58.8]} 4... Nc6 {[%clk 0:02:51]} 5. b3 {[%clk 0:02:54.9]}
5... e6 {[%clk 0:02:47.5]} 6. O-O {[%clk 0:02:53.9]} 6... Bd6 {[%clk 0:02:46.8]}
7. Bb2 {[%clk 0:02:53.6]} 7... O-O {[%clk 0:02:46.6]} 8. Nbd2 {[%clk 0:02:51.6]}
8... cxd4 {[%clk 0:02:46.9]} 9. Nxd4 {[%clk 0:02:50.6]} 9... e5 {[%clk
0:02:46.8]} 10. Nxc6 {[%clk 0:02:48.9]} 10... bxc6 {[%clk 0:02:47.7]} 11. c4
{[%clk 0:02:46.1]} 11... Re8 {[%clk 0:02:29]} 12. Rc1 {[%clk 0:02:33.8]} 12...
d4 {[%clk 0:02:21.1]} 13. c5 {[%clk 0:02:09.9]} 13... Bc7 {[%clk 0:02:19]} 14.
e4 {[%clk 0:01:51.4]} 14... Ba5 {[%clk 0:01:55.4]} 15. Nc4 {[%clk 0:01:44.2]}
15... Bc7 {[%clk 0:01:55.5]} 16. Ba3 {[%clk 0:01:24.4]} 16... a5 {[%clk
0:01:52.1]} 17. Nd6 {[%clk 0:01:23.2]} 17... Re7 {[%clk 0:01:37.4]} 18. Nxc8
{[%clk 0:01:13.4]} 18... Rxc8 {[%clk 0:01:38.3]} 19. f3 {[%clk 0:01:01]} 19...
Nh5 {[%clk 0:01:35.5]} 20. g3 {[%clk 0:00:53.5]} 20... Re6 {[%clk 0:01:30.7]}
21. Rc2 {[%clk 0:00:51.8]} 21... Rg6 {[%clk 0:01:25.1]} 22. Rg2 {[%clk
0:00:50.4]} 22... Qg5 {[%clk 0:01:23.6]} 23. Bc1 {[%clk 0:00:49.1]} 23... Nf4
{[%clk 0:01:19]} 24. Bxf4 {[%clk 0:00:31.8]} 24... exf4 {[%clk 0:01:19.9]} 25.
e5 {[%clk 0:00:30.7]} 25... fxg3 {[%clk 0:01:06.8]} 26. Bxg6 {[%clk 0:00:24]}
26... hxg6 {[%clk 0:01:02.9]} 27. f4 {[%clk 0:00:16.3]} 27... gxh2+ {[%clk
0:01:01.9]} 28. Kh1 {[%clk 0:00:14.8]} 28... Qd8 {[%clk 0:00:55.2]} 29. Rxh2
{[%clk 0:00:12.3]} 29... Qd5+ {[%clk 0:00:53.5]} 30. Qf3 {[%clk 0:00:10.5]}
30... Rd8 {[%clk 0:00:33.1]} 31. Qxd5 {[%clk 0:00:09]} 31... Rxd5 {[%clk
0:00:34]} 32. Rd2 {[%clk 0:00:07.9]} 32... g5 {[%clk 0:00:32.6]} 33. fxg5 {[%clk
0:00:06.8]} 33... Bxe5 {[%clk 0:00:32.9]} 34. Rg1 {[%clk 0:00:03.5]} 34... Bf4
{[%clk 0:00:30.3]} 35. Rd3 {[%clk 0:00:03.6]} 35... Be3 {[%clk 0:00:26.8]} 36.
Re1 {[%clk 0:00:03.1]} 36... Rxc5 {[%clk 0:00:26.5]} 37. Rexe3 {[%clk
0:00:01.8]} 37... dxe3 {[%clk 0:00:26.4]} 38. Rxe3 {[%clk 0:00:02.7]} 38... Rxg5
{[%clk 0:00:25.6]} 39. Re8+ {[%clk 0:00:02.7]} 39... Kh7 {[%clk 0:00:25.9]} 40.
Rc8 {[%clk 0:00:02.7]} 40... Rc5 {[%clk 0:00:26]} 41. Kg2 {[%clk 0:00:02]} 41...
Rc2+ {[%clk 0:00:25.6]} 42. Kf3 {[%clk 0:00:02.3]} 42... Rxa2 {[%clk 0:00:25.9]}
43. Rxc6 {[%clk 0:00:01.9]} 43... Ra3 {[%clk 0:00:26.5]} 44. Rb6 {[%clk
0:00:01.7]} 44... a4 {[%clk 0:00:26.9]} 45. Kg4 {[%clk 0:00:02]} 45... Rxb3
{[%clk 0:00:27.1]} 46. Kg5 {[%clk 0:00:02.1]} 46... Rxb6 {[%clk 0:00:27.1]} 0-1